[Event "Late-Titled-Tuesday-Blitz-September-12-2023"]
[Site "Chess.com"]
[Date "2023.09.12"]
[Round "11"]
[White "ChessSwole"]
[Black "sergiochess83"]
[Result "0-1"]
[WhiteElo "2705"]
[BlackElo "2934"]
[TimeControl "180+1"]
[EndTime "16:01:23 PDT"]
[Termination "sergiochess83 won by resignation"]

1. Nf3 {[%clk 0:02:59.8]} 1... d5 {[%clk 0:02:55.2]} 2. g3 {[%clk 0:02:59.9]}
2... g6 {[%clk 0:02:53.5]} 3. Bg2 {[%clk 0:02:59.4]} 3... Bg7 {[%clk 0:02:54.1]}
4. d4 {[%clk 0:02:59.3]} 4... c6 {[%clk 0:02:49.2]} 5. O-O {[%clk 0:02:59.2]}
5... Nd7 {[%clk 0:02:48.9]} 6. b3 {[%clk 0:02:58.5]} 6... Nb6 {[%clk 0:02:36.6]}
7. Bb2 {[%clk 0:02:57.2]} 7... Nf6 {[%clk 0:02:36.8]} 8. Nbd2 {[%clk 0:02:57]}
8... O-O {[%clk 0:02:36.8]} 9. c4 {[%clk 0:02:53.4]} 9... Bf5 {[%clk 0:02:36.9]}
10. Ne5 {[%clk 0:02:48.7]} 10... Nfd7 {[%clk 0:02:30.2]} 11. Nd3 {[%clk
0:02:42.6]} 11... Re8 {[%clk 0:02:22.4]} 12. e4 {[%clk 0:02:40.5]} 12... dxe4
{[%clk 0:02:17.8]} 13. Nxe4 {[%clk 0:02:41.4]} 13... Bxe4 {[%clk 0:02:11.1]} 14.
Bxe4 {[%clk 0:02:41.2]} 14... Qc7 {[%clk 0:02:09.3]} 15. Bg2 {[%clk 0:02:33.8]}
15... Rad8 {[%clk 0:02:09.1]} 16. Qc2 {[%clk 0:02:31.6]} 16... e5 {[%clk
0:01:54.8]} 17. dxe5 {[%clk 0:02:31.4]} 17... Nxe5 {[%clk 0:01:55.1]} 18. Nxe5
{[%clk 0:02:25.5]} 18... Bxe5 {[%clk 0:01:54.6]} 19. Rad1 {[%clk 0:02:19.4]}
19... Nd7 {[%clk 0:01:47.3]} 20. Rfe1 {[%clk 0:02:16.5]} 20... Bxb2 {[%clk
0:01:46.3]} 21. Qxb2 {[%clk 0:02:17.4]} 21... Nc5 {[%clk 0:01:38.6]} 22. Qc3
{[%clk 0:02:14.6]} 22... Rxd1 {[%clk 0:01:22]} 23. Rxd1 {[%clk 0:02:14.4]} 23...
Qe7 {[%clk 0:01:13.7]} 24. Qd4 {[%clk 0:02:07.8]} 24... a5 {[%clk 0:01:10.2]}
25. h4 {[%clk 0:02:06.1]} 25... h5 {[%clk 0:01:03.4]} 26. Bf3 {[%clk 0:01:54.8]}
26... Ne6 {[%clk 0:00:51.4]} 27. Qd2 {[%clk 0:01:51.6]} 27... Qb4 {[%clk
0:00:49.2]} 28. Qd7 {[%clk 0:01:33.7]} 28... Rd8 {[%clk 0:00:45.6]} 29. Qxd8+
{[%clk 0:01:24.1]} 29... Nxd8 {[%clk 0:00:45.4]} 30. Rxd8+ {[%clk 0:01:25]}
30... Kg7 {[%clk 0:00:46]} 31. Rd7 {[%clk 0:01:22.9]} 31... Kf8 {[%clk
0:00:37.9]} 32. Kg2 {[%clk 0:01:22.6]} 32... Ke8 {[%clk 0:00:35.2]} 33. Rd3
{[%clk 0:01:11.3]} 33... Qa3 {[%clk 0:00:33.6]} 34. Rd2 {[%clk 0:01:09.6]} 34...
a4 {[%clk 0:00:29.2]} 35. bxa4 {[%clk 0:01:03.1]} 35... Qxa4 {[%clk 0:00:29.4]}
36. Rb2 {[%clk 0:01:03.4]} 36... Qa6 {[%clk 0:00:25.1]} 37. c5 {[%clk
0:01:02.2]} 37... Kd8 {[%clk 0:00:23.3]} 38. Rb6 {[%clk 0:00:58.9]} 38... Qa7
{[%clk 0:00:21.9]} 39. Bd1 {[%clk 0:00:49.8]} 39... Kc7 {[%clk 0:00:19]} 40. Bb3
{[%clk 0:00:49.7]} 40... f6 {[%clk 0:00:18.4]} 41. Rb4 {[%clk 0:00:48.5]} 41...
Qxc5 {[%clk 0:00:17.7]} 42. Rf4 {[%clk 0:00:48.6]} 42... Qe5 {[%clk 0:00:16.2]}
43. Bc2 {[%clk 0:00:44]} 43... f5 {[%clk 0:00:11.5]} 44. Bb3 {[%clk 0:00:42.3]}
44... b5 {[%clk 0:00:11.5]} 45. a4 {[%clk 0:00:40.7]} 45... Kb6 {[%clk
0:00:10.7]} 46. Kh2 {[%clk 0:00:38.6]} 46... Kc5 {[%clk 0:00:08.9]} 47. axb5
{[%clk 0:00:38.2]} 47... cxb5 {[%clk 0:00:09.7]} 48. Bf7 {[%clk 0:00:35.4]}
48... Qf6 {[%clk 0:00:09.8]} 49. Bb3 {[%clk 0:00:35.5]} 49... Qd6 {[%clk
0:00:08.5]} 50. Bf7 {[%clk 0:00:34.9]} 50... Kb6 {[%clk 0:00:07.8]} 51. Bb3
{[%clk 0:00:34.6]} 51... Qf6 {[%clk 0:00:07.9]} 52. Kg1 {[%clk 0:00:33.7]} 52...
Kc5 {[%clk 0:00:07.9]} 53. Kh2 {[%clk 0:00:33.3]} 53... Qe7 {[%clk 0:00:08.2]}
54. Bg8 {[%clk 0:00:29.4]} 54... b4 {[%clk 0:00:08.3]} 55. Bb3 {[%clk
0:00:29.7]} 55... Kb5 {[%clk 0:00:08.7]} 56. Kg2 {[%clk 0:00:29.1]} 56... Qb7+
{[%clk 0:00:08.4]} 57. Kh2 {[%clk 0:00:28.4]} 57... Qc6 {[%clk 0:00:09.1]} 58.
Bf7 {[%clk 0:00:27.1]} 58... Qf6 {[%clk 0:00:08.8]} 59. Bb3 {[%clk 0:00:25.8]}
59... Ka5 {[%clk 0:00:08.5]} 60. Rc4 {[%clk 0:00:24.4]} 60... Qb2 {[%clk
0:00:08.3]} 61. Bd1 {[%clk 0:00:21.3]} 61... Qxf2+ {[%clk 0:00:08.2]} 62. Kh3
{[%clk 0:00:20.5]} 62... Qf1+ {[%clk 0:00:08.7]} 0-1

[Event "Late-Titled-Tuesday-Blitz-September-12-2023"]
[Site "Chess.com"]
[Date "2023.09.12"]
[Round "11"]
[White "cassoulet"]
[Black "Arteler"]
[Result "0-1"]
[WhiteElo "2772"]
[BlackElo "2523"]
[TimeControl "180+1"]
[EndTime "16:01:24 PDT"]
[Termination "Arteler won by checkmate"]

1. e4 {[%clk 0:03:00.9]} 1... e6 {[%clk 0:02:58.1]} 2. d4 {[%clk 0:02:58]} 2...
d5 {[%clk 0:02:57.9]} 3. Nd2 {[%clk 0:02:58.2]} 3... Nf6 {[%clk 0:02:58.1]} 4.
Bd3 {[%clk 0:02:54.9]} 4... c5 {[%clk 0:02:57.6]} 5. exd5 {[%clk 0:02:53.5]}
5... Qxd5 {[%clk 0:02:56.8]} 6. Ngf3 {[%clk 0:02:45]} 6... cxd4 {[%clk
0:02:56.4]} 7. Bc4 {[%clk 0:02:45.4]} 7... Qd7 {[%clk 0:02:48.6]} 8. Nb3 {[%clk
0:02:42.2]} 8... Nc6 {[%clk 0:02:48.8]} 9. Nbxd4 {[%clk 0:02:41.6]} 9... a6
{[%clk 0:02:40.5]} 10. O-O {[%clk 0:02:37.9]} 10... b5 {[%clk 0:02:32.8]} 11.
Bb3 {[%clk 0:02:34.2]} 11... Bb7 {[%clk 0:02:31.9]} 12. Re1 {[%clk 0:02:32]}
12... Bd6 {[%clk 0:02:18.7]} 13. Nxe6 {[%clk 0:01:35.4]} 13... fxe6 {[%clk
0:02:18.6]} 14. Bxe6 {[%clk 0:01:36.3]} 14... Qc7 {[%clk 0:02:18.8]} 15. Bc8+
{[%clk 0:01:35.6]} 15... Be7 {[%clk 0:02:06.8]} 16. Be6 {[%clk 0:01:23]} 16...
Rd8 {[%clk 0:01:59.1]} 17. Qe2 {[%clk 0:01:23]} 17... Nd4 {[%clk 0:01:56.6]} 18.
Nxd4 {[%clk 0:01:21.9]} 18... Rxd4 {[%clk 0:01:56.7]} 19. f3 {[%clk 0:01:18.7]}
19... Bd5 {[%clk 0:01:35.6]} 20. Be3 {[%clk 0:00:59.8]} 20... Rh4 {[%clk
0:01:35.5]} 21. g3 {[%clk 0:00:54.6]} 21... Rc4 {[%clk 0:01:35.6]} 22. Bxd5
{[%clk 0:00:43]} 22... Nxd5 {[%clk 0:01:36.5]} 23. Bg5 {[%clk 0:00:34.2]} 23...
Rxc2 {[%clk 0:01:08.8]} 24. Qe6 {[%clk 0:00:23.2]} 24... Qc5+ {[%clk 0:01:08.2]}
25. Kh1 {[%clk 0:00:23.3]} 25... Qf2 {[%clk 0:01:06.2]} 26. Qh3 {[%clk
0:00:16.8]} 26... Qxf3+ {[%clk 0:01:04.7]} 27. Kg1 {[%clk 0:00:17.2]} 27... Rf8
{[%clk 0:00:16.8]} 28. Bxe7 {[%clk 0:00:14.9]} 28... Nxe7 {[%clk 0:00:17.7]} 29.
Rad1 {[%clk 0:00:14.9]} 29... Qf2+ {[%clk 0:00:12.6]} 30. Kh1 {[%clk 0:00:15]}
30... Rf5 {[%clk 0:00:08.7]} 31. Rf1 {[%clk 0:00:10.4]} 31... Qc5 {[%clk
0:00:07.1]} 32. Rfe1 {[%clk 0:00:04.9]} 32... Qc6+ {[%clk 0:00:07.1]} 33. Kg1
{[%clk 0:00:05.2]} 33... Qb6+ {[%clk 0:00:07.6]} 34. Kh1 {[%clk 0:00:05.4]}
34... Qc6+ {[%clk 0:00:07.9]} 35. Kg1 {[%clk 0:00:05.9]} 35... Qf6 {[%clk
0:00:07.9]} 36. Qg4 {[%clk 0:00:05.2]} 36... Qb6+ {[%clk 0:00:06.8]} 37. Kh1
{[%clk 0:00:04.9]} 37... Qc6+ {[%clk 0:00:07.4]} 38. Re4 {[%clk 0:00:05.5]}
38... Re5 {[%clk 0:00:06.3]} 39. Re1 {[%clk 0:00:04.4]} 39... Rc4 {[%clk
0:00:06]} 40. Qf3 {[%clk 0:00:01]} 40... Rcxe4 {[%clk 0:00:05.9]} 41. Rf1 {[%clk
0:00:01.5]} 41... Kd7 {[%clk 0:00:04.2]} 42. Kg1 {[%clk 0:00:01.2]} 42... Re6
{[%clk 0:00:04]} 43. Qd3+ {[%clk 0:00:01.5]} 43... Qd6 {[%clk 0:00:03.7]} 44.
Qf3 {[%clk 0:00:02.4]} 44... Rd4 {[%clk 0:00:03.7]} 45. Rf2 {[%clk 0:00:02.6]}
45... Rf6 {[%clk 0:00:04.1]} 46. Kg2 {[%clk 0:00:03.5]} 46... Rxf3 {[%clk
0:00:04.2]} 47. Rxf3 {[%clk 0:00:04.4]} 47... Rd2+ {[%clk 0:00:05.1]} 48. Kh3
{[%clk 0:00:04.6]} 48... Qe6+ {[%clk 0:00:05.3]} 49. g4 {[%clk 0:00:04.9]} 49...
Qe4 {[%clk 0:00:05.5]} 50. Rg3 {[%clk 0:00:05.8]} 50... Rd3 {[%clk 0:00:05.5]}
51. Kh4 {[%clk 0:00:06.6]} 51... Rxg3 {[%clk 0:00:05.9]} 52. Kxg3 {[%clk
0:00:07.5]} 52... Ng6 {[%clk 0:00:05.6]} 53. g5 {[%clk 0:00:08.2]} 53... Qf4+
{[%clk 0:00:05.7]} 54. Kh3 {[%clk 0:00:08.4]} 54... Ne5 {[%clk 0:00:05.6]} 55.
Kg2 {[%clk 0:00:09.3]} 55... Qf3+ {[%clk 0:00:05.9]} 56. Kg1 {[%clk 0:00:10.1]}
56... Ng4 {[%clk 0:00:06.8]} 57. h3 {[%clk 0:00:09.3]} 57... Qf2+ {[%clk
0:00:07.7]} 58. Kh1 {[%clk 0:00:09.4]} 58... Qh2# {[%clk 0:00:08.6]} 0-1

[Event "Late-Titled-Tuesday-Blitz-September-12-2023"]
[Site "Chess.com"]
[Date "2023.09.12"]
[Round "11"]
[White "Noki102"]
[Black "Alphafischer2019"]
[Result "0-1"]
[WhiteElo "2431"]
[BlackElo "2557"]
[TimeControl "180+1"]
[EndTime "16:01:25 PDT"]
[Termination "Alphafischer2019 won by resignation"]

1. d4 {[%clk 0:03:00]} 1... c5 {[%clk 0:02:59.4]} 2. c3 {[%clk 0:02:57.2]} 2...
Nf6 {[%clk 0:02:57.1]} 3. e3 {[%clk 0:02:55.8]} 3... g6 {[%clk 0:02:52.1]} 4. f4
{[%clk 0:02:52.8]} 4... Bg7 {[%clk 0:02:51.7]} 5. Nf3 {[%clk 0:02:53]} 5... d5
{[%clk 0:02:51.9]} 6. Bd3 {[%clk 0:02:50.5]} 6... Nc6 {[%clk 0:02:50.7]} 7. O-O
{[%clk 0:02:50.5]} 7... Bf5 {[%clk 0:02:50]} 8. Be2 {[%clk 0:02:49.7]} 8... Ne4
{[%clk 0:02:45.6]} 9. Nbd2 {[%clk 0:02:49.4]} 9... cxd4 {[%clk 0:02:43.8]} 10.
exd4 {[%clk 0:02:48.1]} 10... Rc8 {[%clk 0:02:41.6]} 11. Ne5 {[%clk 0:02:47.8]}
11... Qb6 {[%clk 0:02:27.5]} 12. Ndf3 {[%clk 0:02:38.3]} 12... f6 {[%clk
0:02:21.6]} 13. Nd3 {[%clk 0:02:37.4]} 13... O-O {[%clk 0:02:17.3]} 14. Kh1
{[%clk 0:02:35.4]} 14... Rce8 {[%clk 0:02:08.9]} 15. Be3 {[%clk 0:02:33.6]}
15... Qc7 {[%clk 0:02:06.9]} 16. Bg1 {[%clk 0:02:18.4]} 16... Nd6 {[%clk
0:02:01.3]} 17. a4 {[%clk 0:02:11.8]} 17... Be4 {[%clk 0:01:54.3]} 18. Nd2
{[%clk 0:02:09.8]} 18... Bf5 {[%clk 0:01:46.5]} 19. Nc5 {[%clk 0:01:59]} 19...
b6 {[%clk 0:01:34.7]} 20. Nd3 {[%clk 0:01:58.7]} 20... Kh8 {[%clk 0:01:29.7]}
21. Nb3 {[%clk 0:01:41.1]} 21... Ne4 {[%clk 0:01:25.2]} 22. a5 {[%clk
0:01:40.3]} 22... Nd6 {[%clk 0:00:51.2]} 23. axb6 {[%clk 0:01:38.7]} 23... axb6
{[%clk 0:00:52.1]} 24. Bf3 {[%clk 0:01:33.7]} 24... Be4 {[%clk 0:00:51.8]} 25.
Nf2 {[%clk 0:01:29.2]} 25... Bxf3 {[%clk 0:00:51.3]} 26. Qxf3 {[%clk 0:01:30.1]}
26... e6 {[%clk 0:00:51.9]} 27. h3 {[%clk 0:01:24.2]} 27... f5 {[%clk
0:00:51.8]} 28. Bh2 {[%clk 0:01:23.2]} 28... Ne4 {[%clk 0:00:49.3]} 29. Nd3
{[%clk 0:01:22.4]} 29... Ra8 {[%clk 0:00:44.5]} 30. Qe3 {[%clk 0:01:14.2]} 30...
Qb7 {[%clk 0:00:44.3]} 31. Bg3 {[%clk 0:01:05.1]} 31... h6 {[%clk 0:00:42.5]}
32. Bh4 {[%clk 0:01:04]} 32... Rxa1 {[%clk 0:00:41.5]} 33. Rxa1 {[%clk
0:01:03.4]} 33... Ra8 {[%clk 0:00:42.3]} 34. Qc1 {[%clk 0:01:01.5]} 34... Rxa1
{[%clk 0:00:40.6]} 35. Qxa1 {[%clk 0:00:56.9]} 35... g5 {[%clk 0:00:41.3]} 36.
fxg5 {[%clk 0:00:55.7]} 36... hxg5 {[%clk 0:00:42.2]} 37. Be1 {[%clk 0:00:56.3]}
37... Qc7 {[%clk 0:00:42.4]} 38. Nd2 {[%clk 0:00:45.9]} 38... Ne7 {[%clk
0:00:36.7]} 39. Qa8+ {[%clk 0:00:42]} 39... Kh7 {[%clk 0:00:36.8]} 40. Nf3
{[%clk 0:00:40.5]} 40... Ng6 {[%clk 0:00:36.9]} 41. Qe8 {[%clk 0:00:35.7]} 41...
g4 {[%clk 0:00:32]} 42. Nfe5 {[%clk 0:00:28.1]} 42... Nxe5 {[%clk 0:00:31.9]}
43. dxe5 {[%clk 0:00:23.7]} 43... gxh3 {[%clk 0:00:31.3]} 44. Qxe6 {[%clk
0:00:22.3]} 44... hxg2+ {[%clk 0:00:24.3]} 45. Kxg2 {[%clk 0:00:22.2]} 45... Qc4
{[%clk 0:00:17.9]} 46. Qxf5+ {[%clk 0:00:20.4]} 46... Kg8 {[%clk 0:00:18.6]} 47.
Qe6+ {[%clk 0:00:19.6]} 47... Kh7 {[%clk 0:00:18.6]} 48. Nf4 {[%clk 0:00:19.8]}
48... Qb3 {[%clk 0:00:11.2]} 49. Qf5+ {[%clk 0:00:15.6]} 49... Kg8 {[%clk
0:00:11.1]} 50. Qe6+ {[%clk 0:00:15.2]} 50... Kh7 {[%clk 0:00:11]} 51. Qg6+
{[%clk 0:00:15.4]} 51... Kg8 {[%clk 0:00:10.6]} 52. Ne6 {[%clk 0:00:13.1]} 52...
Qc2+ {[%clk 0:00:08.5]} 53. Kh1 {[%clk 0:00:10.8]} 53... Nf2+ {[%clk 0:00:08.1]}
54. Bxf2 {[%clk 0:00:10.8]} 54... Qxg6 {[%clk 0:00:08.9]} 0-1

[Event "Late-Titled-Tuesday-Blitz-September-12-2023"]
[Site "Chess.com"]
[Date "2023.09.12"]
[Round "11"]
[White "FairChess_on_YouTube"]
[Black "Firouzja2003"]
[Result "1-0"]
[WhiteElo "3098"]
[BlackElo "3083"]
[TimeControl "180+1"]
[EndTime "16:01:31 PDT"]
[Termination "FairChess_on_YouTube won on time"]

1. Nf3 {[%clk 0:03:00.9]} 1... Nf6 {[%clk 0:02:58.1]} 2. d4 {[%clk 0:03:00.6]}
2... g6 {[%clk 0:02:58.1]} 3. g3 {[%clk 0:03:00.9]} 3... Bg7 {[%clk 0:02:58.4]}
4. Bg2 {[%clk 0:03:01.5]} 4... O-O {[%clk 0:02:58.8]} 5. O-O {[%clk 0:03:02.1]}
5... d6 {[%clk 0:02:59.6]} 6. Nc3 {[%clk 0:03:02.2]} 6... Nbd7 {[%clk 0:02:56]}
7. e4 {[%clk 0:03:02.3]} 7... e5 {[%clk 0:02:56.4]} 8. Re1 {[%clk 0:03:02.4]}
8... c6 {[%clk 0:02:56.4]} 9. h3 {[%clk 0:03:02.3]} 9... b5 {[%clk 0:02:46.8]}
10. a3 {[%clk 0:03:02.7]} 10... a6 {[%clk 0:02:44.1]} 11. Be3 {[%clk 0:03:01.8]}
11... Re8 {[%clk 0:02:41.6]} 12. Qd2 {[%clk 0:03:01]} 12... exd4 {[%clk
0:02:15.7]} 13. Bxd4 {[%clk 0:02:57.8]} 13... Ne5 {[%clk 0:01:52]} 14. Bxe5
{[%clk 0:02:44.6]} 14... dxe5 {[%clk 0:01:51.2]} 15. Qxd8 {[%clk 0:02:45.2]}
15... Rxd8 {[%clk 0:01:52.1]} 16. Nxe5 {[%clk 0:02:45.6]} 16... Bb7 {[%clk
0:01:52.3]} 17. Nd3 {[%clk 0:02:42.6]} 17... Nd7 {[%clk 0:01:49.6]} 18. e5
{[%clk 0:02:40.8]} 18... Nb6 {[%clk 0:01:42]} 19. Ne4 {[%clk 0:02:35.2]} 19...
Nc4 {[%clk 0:01:12.5]} 20. Nec5 {[%clk 0:02:32.8]} 20... Bc8 {[%clk 0:01:10.6]}
21. Rad1 {[%clk 0:02:19.9]} 21... Bf5 {[%clk 0:01:03.8]} 22. Bxc6 {[%clk
0:02:08.1]} 22... Rac8 {[%clk 0:00:59.7]} 23. Bb7 {[%clk 0:02:07.1]} 23... Rc7
{[%clk 0:00:56.7]} 24. Bxa6 {[%clk 0:02:03.2]} 24... Nxb2 {[%clk 0:00:52.9]} 25.
Nxb2 {[%clk 0:01:55]} 25... Rxd1 {[%clk 0:00:53.1]} 26. Rxd1 {[%clk 0:01:53]}
26... Rxc5 {[%clk 0:00:53.7]} 27. Nd3 {[%clk 0:01:49.6]} 27... Rxc2 {[%clk
0:00:46.4]} 28. Bxb5 {[%clk 0:01:48.2]} 28... Bxh3 {[%clk 0:00:46.5]} 29. a4
{[%clk 0:01:44.9]} 29... Bg4 {[%clk 0:00:42.6]} 30. Ra1 {[%clk 0:01:36.9]} 30...
Rc7 {[%clk 0:00:09.6]} 31. a5 {[%clk 0:01:31.3]} 31... Bf8 {[%clk 0:00:09.9]}
32. a6 {[%clk 0:01:29.1]} 32... Ra7 {[%clk 0:00:10.1]} 33. Bc4 {[%clk
0:01:17.1]} 33... Bc8 {[%clk 0:00:09.3]} 34. Nf4 {[%clk 0:01:10.1]} 34... Kg7
{[%clk 0:00:08.7]} 35. Nd5 {[%clk 0:00:52.2]} 35... Bc5 {[%clk 0:00:06.7]} 36.
Kg2 {[%clk 0:00:48.7]} 36... Bd4 {[%clk 0:00:06.6]} 37. Ra5 {[%clk 0:00:45.5]}
37... Bd7 {[%clk 0:00:02.7]} 38. Nf4 {[%clk 0:00:41.2]} 38... Bc6+ {[%clk
0:00:02.8]} 39. Bd5 {[%clk 0:00:40.3]} 39... Bb6 {[%clk 0:00:02.8]} 40. Ra2
{[%clk 0:00:37.6]} 40... Be8 {[%clk 0:00:03]} 41. e6 {[%clk 0:00:36.4]} 41... g5
{[%clk 0:00:02.9]} 42. exf7 {[%clk 0:00:34.6]} 42... Bxf7 {[%clk 0:00:03.3]} 43.
Bxf7 {[%clk 0:00:34]} 43... gxf4 {[%clk 0:00:03.5]} 44. Bd5 {[%clk 0:00:33.8]}
44... fxg3 {[%clk 0:00:03.7]} 45. fxg3 {[%clk 0:00:32.8]} 45... Rd7 {[%clk
0:00:03.9]} 46. Bb7 {[%clk 0:00:32.1]} 46... Ba7 {[%clk 0:00:04.2]} 47. Rc2
{[%clk 0:00:31.4]} 47... Kf6 {[%clk 0:00:04]} 48. Rc6+ {[%clk 0:00:30.5]} 48...
Ke5 {[%clk 0:00:04]} 49. Kh3 {[%clk 0:00:29.5]} 49... Rg7 {[%clk 0:00:03.9]} 50.
Rc3 {[%clk 0:00:28.7]} 50... Bd4 {[%clk 0:00:03.5]} 51. Rd3 {[%clk 0:00:28.5]}
51... Ba7 {[%clk 0:00:03.5]} 52. Rd5+ {[%clk 0:00:28.6]} 52... Ke6 {[%clk
0:00:04]} 53. Rh5 {[%clk 0:00:28.1]} 53... Bf2 {[%clk 0:00:02.3]} 54. g4 {[%clk
0:00:27.2]} 54... Ba7 {[%clk 0:00:01.3]} 55. Rf5 {[%clk 0:00:27.7]} 55... Re7
{[%clk 0:00:01.2]} 56. Kh4 {[%clk 0:00:27.7]} 56... Rc7 {[%clk 0:00:01.5]} 57.
Kh5 {[%clk 0:00:26.7]} 57... Rc1 {[%clk 0:00:01.6]} 58. Kh6 {[%clk 0:00:26.1]}
58... Rc4 {[%clk 0:00:01.2]} 59. Kxh7 {[%clk 0:00:19.6]} 59... Rxg4 {[%clk
0:00:01.2]} 60. Bc8+ {[%clk 0:00:20.2]} 1-0

[Event "Late-Titled-Tuesday-Blitz-September-12-2023"]
[Site "Chess.com"]
[Date "2023.09.12"]
[Round "11"]
[White "tptagain"]
[Black "GMBenjaminBok"]
[Result "0-1"]
[WhiteElo "2951"]
[BlackElo "3016"]
[TimeControl "180+1"]
[EndTime "16:01:31 PDT"]
[Termination "GMBenjaminBok won by checkmate"]

1. Nf3 {[%clk 0:03:00.9]} 1... c5 {[%clk 0:02:56.7]} 2. b3 {[%clk 0:03:00.7]}
2... d6 {[%clk 0:02:53.8]} 3. c4 {[%clk 0:03:00.3]} 3... g6 {[%clk 0:02:49.2]}
4. Bb2 {[%clk 0:02:56.2]} 4... e5 {[%clk 0:02:49]} 5. Nc3 {[%clk 0:02:56.1]}
5... Bg7 {[%clk 0:02:48.7]} 6. e3 {[%clk 0:02:54.7]} 6... Nc6 {[%clk 0:02:48.2]}
7. d3 {[%clk 0:02:51.3]} 7... Nge7 {[%clk 0:02:48]} 8. g3 {[%clk 0:02:51.3]}
8... O-O {[%clk 0:02:47.9]} 9. Bg2 {[%clk 0:02:51.7]} 9... h6 {[%clk 0:02:45.9]}
10. O-O {[%clk 0:02:41.4]} 10... Be6 {[%clk 0:02:45.5]} 11. Rc1 {[%clk
0:02:41.1]} 11... b6 {[%clk 0:02:40.4]} 12. a3 {[%clk 0:02:37.9]} 12... d5
{[%clk 0:02:37.4]} 13. cxd5 {[%clk 0:02:31.7]} 13... Nxd5 {[%clk 0:02:38.3]} 14.
Nxd5 {[%clk 0:02:24.7]} 14... Bxd5 {[%clk 0:02:39.2]} 15. b4 {[%clk 0:02:24.5]}
15... e4 {[%clk 0:02:17]} 16. dxe4 {[%clk 0:02:08.9]} 16... Bxb2 {[%clk
0:02:16.3]} 17. Qxd5 {[%clk 0:01:08.5]} 17... Bxc1 {[%clk 0:02:06.5]} 18. Rxc1
{[%clk 0:01:09.4]} 18... Ne7 {[%clk 0:01:58.7]} 19. Qe5 {[%clk 0:01:09.8]} 19...
cxb4 {[%clk 0:01:54]} 20. axb4 {[%clk 0:01:10.7]} 20... Rc8 {[%clk 0:01:49.2]}
21. Ra1 {[%clk 0:01:10.1]} 21... Nc6 {[%clk 0:01:45.3]} 22. Qf4 {[%clk
0:01:10.5]} 22... g5 {[%clk 0:01:00.1]} 23. Qf5 {[%clk 0:01:01.5]} 23... Nxb4
{[%clk 0:00:42.3]} 24. Nd4 {[%clk 0:00:51.2]} 24... Rc5 {[%clk 0:00:28.8]} 25.
e5 {[%clk 0:00:51.2]} 25... Qe7 {[%clk 0:00:16.2]} 26. Be4 {[%clk 0:00:45.1]}
26... f6 {[%clk 0:00:14.4]} 27. Qg6+ {[%clk 0:00:40.1]} 27... Qg7 {[%clk
0:00:13.9]} 28. Qxg7+ {[%clk 0:00:34.2]} 28... Kxg7 {[%clk 0:00:14.8]} 29. Rxa7+
{[%clk 0:00:32.5]} 29... Kg8 {[%clk 0:00:13.4]} 30. Ne6 {[%clk 0:00:23]} 30...
Rc1+ {[%clk 0:00:10.7]} 31. Kg2 {[%clk 0:00:22.3]} 31... f5 {[%clk 0:00:11.6]}
32. Nxf8 {[%clk 0:00:16.6]} 32... fxe4 {[%clk 0:00:12.2]} 33. Nd7 {[%clk
0:00:14.5]} 33... Kf7 {[%clk 0:00:12.1]} 34. Nxb6+ {[%clk 0:00:13.4]} 34... Ke6
{[%clk 0:00:12.4]} 35. Rh7 {[%clk 0:00:13]} 35... Nd3 {[%clk 0:00:12.5]} 36.
Rxh6+ {[%clk 0:00:12.7]} 36... Kxe5 {[%clk 0:00:13.2]} 37. Kh3 {[%clk
0:00:11.4]} 37... Nxf2+ {[%clk 0:00:12.8]} 38. Kg2 {[%clk 0:00:11.9]} 38... Rc2
{[%clk 0:00:12.8]} 39. Nd7+ {[%clk 0:00:10.5]} 39... Kd5 {[%clk 0:00:12.7]} 40.
Rg6 {[%clk 0:00:06.9]} 40... Ng4+ {[%clk 0:00:09.4]} 41. Kh3 {[%clk 0:00:04.5]}
41... Nf2+ {[%clk 0:00:09.4]} 42. Kg2 {[%clk 0:00:05.1]} 42... Ng4+ {[%clk
0:00:09.6]} 43. Kg1 {[%clk 0:00:05.1]} 43... Rc1+ {[%clk 0:00:07.1]} 44. Kg2
{[%clk 0:00:05.2]} 44... Nxe3+ {[%clk 0:00:08]} 45. Kh3 {[%clk 0:00:04.1]} 45...
g4+ {[%clk 0:00:08.1]} 46. Kh4 {[%clk 0:00:04.5]} 46... Rc2 {[%clk 0:00:07.5]}
47. Nf6+ {[%clk 0:00:03.7]} 47... Kd4 {[%clk 0:00:07.8]} 48. Nxg4 {[%clk
0:00:03]} 48... Nd5 {[%clk 0:00:08.2]} 49. h3 {[%clk 0:00:01.9]} 49... e3 {[%clk
0:00:08.5]} 50. Re6 {[%clk 0:00:02.3]} 50... e2 {[%clk 0:00:07.5]} 51. Kg5
{[%clk 0:00:02.2]} 51... Nc3 {[%clk 0:00:07.5]} 52. h4 {[%clk 0:00:01.9]} 52...
Ne4+ {[%clk 0:00:07.7]} 53. Kf4 {[%clk 0:00:01.7]} 53... e1=Q {[%clk 0:00:07.9]}
54. Nh2 {[%clk 0:00:02.3]} 54... Rf2+ {[%clk 0:00:07.8]} 55. Nf3+ {[%clk
0:00:03.2]} 55... Rxf3+ {[%clk 0:00:08.3]} 56. Kxf3 {[%clk 0:00:04]} 56... Qxg3+
{[%clk 0:00:08.6]} 57. Ke2 {[%clk 0:00:03.5]} 57... Qf2+ {[%clk 0:00:09.2]} 58.
Kd1 {[%clk 0:00:03.6]} 58... Qd2# {[%clk 0:00:10.1]} 0-1